fUSD/lending_fUSD_20240126
["ID","MTS","AMOUNT","RATE_DAILY","PERIOD"]
[312793780,1706239845179,-167.72,0.00026302,2]
[312793781,1706239845188,-182.71,0.00026353,2]
[312793782,1706239845198,-1000.0,0.0002637,2]
[312793783,1706239845207,-8612.89538757,0.000264,2]
[312793784,1706239845217,-1500.0,0.0002651,2]
[312793785,1706239845226,-1500.0,0.00026517,2]
[312793786,1706239845236,-1021.78580235,0.00026526,2]
[312793787,1706239845245,-14163.0,0.00026575,2]
[312793788,1706239845255,-57727.0,0.00026575,2]
[312793789,1706239845265,-1000.0,0.00026575,2]
[312793790,1706239845274,-1059.33,0.00026575,2]
[312793791,1706239845285,-150.0,0.00026603,2]
[312793792,1706239845295,-150.0,0.0002663,2]
[312793793,1706239845306,-479.14658881,0.0002665,2]
[312793794,1706239845315,-150.0,0.00026651,2]
[312793795,1706239845324,-150.0,0.00026662,2]
[312793796,1706239845334,-150.0,0.00026665,2]
[312793797,1706239845343,-150.0,0.00026667,2]
[312793798,1706239845352,-150.0,0.0002669,2]
[312793799,1706239845361,-1500.0,0.00026708,2]
[312793800,1706239845372,-152.95131082,0.00026737,2]
[312793801,1706239845382,-150.0,0.00026746,2]
[312793802,1706239845391,-686.88,0.00026751,2]
[312793803,1706239845400,-150.0,0.00026757,2]
[312793804,1706239845409,-150.0,0.00026773,2]
[312793805,1706239845419,-150.0,0.00026798,2]
[312793806,1706239845428,-150.0,0.0002681,2]
[312793807,1706239845437,-150.0,0.00026813,2]
[312793808,1706239845447,-150.0,0.00026821,2]
[312793809,1706239845456,-150.0,0.00026839,2]
[312793811,1706239845466,-150.0,0.00026869,2]
[312793813,1706239845475,-150.0,0.00026873,2]
[312793815,1706239845484,-150.0,0.00026876,2]
[312793817,1706239845494,-3692.91483855,0.00026882,2]
[312793819,1706239845503,-237.25344124,0.00026946,2]
[312793821,1706239845512,-167.87,0.0002697,2]
[312793823,1706239845522,-419.63982275,0.00027,2]
[312793825,1706239845531,-306.372201,0.00027,2]
[312793827,1706239845540,-1975.383999,0.00027,2]
[312793829,1706239845550,-556.7161,0.00027,2]
[312793830,1706239845559,-500.0,0.00027,3]
[312793831,1706239845568,-2210.9875,0.00027,2]
[312793833,1706239845577,-1562.22,0.00027123,2]
[312793834,1706239845586,-161.3,0.00027315,2]
[312793836,1706239845595,-500.0,0.00027397,2]
[312793838,1706239845604,-500.0,0.00027397,2]
[312793840,1706239845613,-500.0,0.00027397,2]
[312793842,1706239845622,-500.0,0.00027397,2]
[312793844,1706239845631,-500.0,0.00027397,2]
[312793846,1706239845640,-289.32341673,0.00027397,2]
[312793848,1706239845648,-155.0,0.00027397,2]
[312793850,1706239845657,-150.0,0.00027397,2]
[312793852,1706239845666,-200.31782411,0.00027397,2]
[312793854,1706239845675,-158.33,0.00027397,2]
[312793856,1706239845684,-158.57,0.00027397,2]
[312793858,1706239845692,-250.18,0.00027397,2]
[312793860,1706239845701,-2294.8,0.00027397,2]
[312793862,1706239845709,-251.58,0.00027397,2]
[312793864,1706239845718,-28869.06,0.00027397,2]
[312793865,1706239845727,-10972.40301591,0.00027397,2]
[312793868,1706239845741,-345.00003493,0.00027397,2]
[312793869,1706239845752,-1707.12749173,0.00027397,2]
[312793870,1706239845763,-2745.34945743,0.00027397,2]
[312793872,1706239845772,-32209.32,0.00027397,2]
[312793873,1706239845781,-184.03,0.000274,2]
[312793875,1706239845790,-184.03,0.000274,2]
[312793891,1706239845928,-184.03,0.000274,2]
[312793893,1706239845937,-268.07027326,0.00027556,2]
[312793896,1706239845949,-15501.80972674,0.00027556,2]
[312793898,1706239845958,-158.33,0.00027686,2]
[312793900,1706239845967,-2294.8,0.00027686,2]
[312793902,1706239845976,-15769.88,0.00027714,2]
[312793904,1706239845987,-158.57,0.00027763,2]
[312793906,1706239845996,-15769.88,0.00027872,2]
[312793907,1706239846006,-358.98191241,0.00027874,2]
[312793909,1706239846016,-150.0,0.00027876,2]
[312793911,1706239846025,-323.3899368,0.00027879,2]
[312793913,1706239846035,-152.53360568,0.00027945,2]
[312793915,1706239846044,-158.33,0.00027974,2]
[312793917,1706239846053,-2113.36248554,0.00027974,2]
[312793920,1706239846070,-181.43751446,0.00027974,2]
[312793921,1706239846079,-689.47449739,0.00028,2]
[312793923,1706239846088,-930.3957034,0.00028,2]
[312793925,1706239846098,-262.44699354,0.00028,2]
[312793926,1706239846109,-204.62326502,0.00028,2]
[312793929,1706239846118,-200.0,0.00028,2]
[312793931,1706239846127,-105.75738111,0.0002803,2]
[312793932,1706239846139,-7104.32764006,0.0002803,2]
[312793935,1706239846154,-353.659,0.0002803,2]
[312793936,1706239846166,-8206.13597883,0.0002803,2]
[312793938,1706239846175,-158.57,0.00028128,2]
[312793940,1706239846185,-15769.88,0.00028189,2]
[312793941,1706239846194,-158.33,0.00028262,2]
[312793943,1706239846204,-2294.8,0.00028262,2]
[312793945,1706239846213,-165.55,0.00028307,2]
[312793946,1706239846222,-167.87,0.00028307,2]
[312793947,1706239846231,-167.72,0.00028307,2]
[312793948,1706239846241,-7744.05292711,0.00028347,2]
[312793949,1706239846296,-8025.82707289,0.00028347,2]
[312793950,1706239846306,-686.88,0.00028394,2]
[312793951,1706239846315,-158.57,0.00028493,2]
[312793952,1706239846325,-15769.88,0.00028505,2]
[312793953,1706239846334,-158.33,0.00028551,2]
[312793954,1706239846344,-2294.8,0.00028551,2]
[312793955,1706239846353,-182.71,0.00028617,2]
[312793956,1706239846363,-188.916,0.00028645,2]
[312793957,1706239846374,-317.722,0.00028645,2]
[312793958,1706239846384,-2911.0,0.00028645,2]
[312793959,1706239846393,-19743.0,0.00028645,2]
[312793960,1706239846403,-2278.0,0.00028645,2]
[312793961,1706239846412,-215.0,0.00028645,2]
[312793962,1706239846422,-1233.0,0.00028645,2]
[312793963,1706239846431,-1252.0,0.00028645,2]
[312793964,1706239846441,-184.03,0.00028654,2]
[312793965,1706239846451,-533.0,0.00028663,5]
[312793966,1706239846461,-15769.88,0.00028664,2]
[312793967,1706239846470,-161.3,0.00028691,2]
[312793968,1706239846479,-155.0,0.00028767,2]
[312793969,1706239846489,-15769.88,0.00028822,2]
[312793970,1706239846498,-2271.15811309,0.00028826,4]
[312793971,1706239846507,-158.33,0.00028839,2]
[312793972,1706239846517,-2294.8,0.00028839,2]
[312793973,1706239846526,-158.57,0.00028858,2]
[312793974,1706239846536,-3692.91483855,0.00028873,2]
[312793975,1706239846545,-150.0,0.00028876,2]
[312793976,1706239846554,-550.0,0.00029,3]
[312793977,1706239846563,-158.33,0.00029128,2]
[312793978,1706239846574,-2294.8,0.00029128,2]
[312793979,1706239846584,-166.64,0.00029201,2]
[312793980,1706239846593,-158.57,0.00029224,2]
[312793981,1706239846602,-1000.0,0.000293,2]
[312793982,1706239846611,-200.0,0.00029346,2]
[312793983,1706239846621,-155.0,0.00029346,2]
[312793984,1706239846630,-158.33,0.00029416,2]
[312793985,1706239846639,-2294.8,0.00029416,2]
[312793986,1706239846649,-158.57,0.00029589,2]
[312793987,1706239846658,-158.33,0.00029704,2]
[312793988,1706239846667,-2294.8,0.00029704,2]
[312793989,1706239846676,-150.0,0.00029876,2]
[312793990,1706239846685,-158.57,0.00029954,2]
[312793991,1706239846694,-158.33,0.00029993,2]
[312793992,1706239846703,-2294.8,0.00029993,2]
[312793993,1706239846713,-692.52631931,0.0003,2]
[312793994,1706239846722,-155.0,0.0003,2]
[312793995,1706239846731,-357.91955435,0.0003,2]
[312793996,1706239846740,-10057.20026256,0.0003,2]
[312793997,1706239846749,-9003.711,0.0003,3]
[312793998,1706239846758,-713.1399999,0.0003,4]
[312793999,1706239846768,-2007.5979059,0.0003,2]
[312794000,1706239846778,-275.91293112,0.0003,4]
[312794001,1706239846788,-374.39036189,0.0003,4]
[312794002,1706239846797,-583.60099398,0.0003,2]
[312794003,1706239846806,-9654.87283251,0.0003,2]
[312794004,1706239846815,-200.0,0.0003,2]
[312794005,1706239846824,-200.0,0.0003,2]
[312794006,1706239846833,-207.37950753,0.0003,4]
[312794007,1706239846842,-200.0,0.0003,2]
[312794008,1706239846851,-1000.0,0.0003,2]
[312794009,1706239846861,-1010.40209,0.0003,2]
[312794010,1706239846870,-686.88,0.00030038,2]
[312794011,1706239846879,-161.3,0.00030067,2]
[312794012,1706239846888,-1000.0,0.000301,2]
[312794013,1706239846898,-1983.58,0.00030137,2]
[312794014,1706239846907,-155.12,0.00030137,2]
[312794015,1706239846916,-155.0,0.00030137,2]
[312794016,1706239846925,-7027.04939796,0.000302,3]
[312794017,1706239846934,-5849.00396766,0.000302,4]
[312794018,1706239846943,-500.0,0.000302,2]
[312794019,1706239846952,-1000.0,0.000302,2]
[312794020,1706239846961,-158.33,0.00030281,2]
[312794021,1706239846971,-2294.8,0.00030281,2]
[312794022,1706239846980,-1000.0,0.000303,2]
[312794023,1706239846989,-158.57,0.0003032,2]
[312794024,1706239846998,-1000.0,0.000304,3]
[312794025,1706239847007,-153.96831706,0.00030501,2]
[312794026,1706239847018,-158.33,0.00030569,2]
[312794027,1706239847027,-2294.8,0.00030569,2]
[312794028,1706239847036,-158.57,0.00030685,2]
[312794029,1706239847046,-158.33,0.00030858,2]
[312794030,1706239847055,-2294.8,0.00030858,2]
[312794031,1706239847063,-3692.91483855,0.00030864,2]
[312794032,1706239847073,-150.0,0.00030876,2]
[312794033,1706239847082,-182.71,0.00030881,2]
[312794034,1706239847091,-176.58,0.00031,2]
[312794035,1706239847100,-600.0,0.00031,3]
[312794036,1706239847110,-158.57,0.0003105,2]
[312794037,1706239847119,-158.33,0.00031146,2]
[312794038,1706239847128,-2294.8,0.00031146,2]
[312794039,1706239847137,-158.57,0.00031415,2]
[312794040,1706239847146,-158.33,0.00031435,2]
[312794041,1706239847156,-2294.8,0.00031435,2]
[312794042,1706239847165,-161.3,0.00031443,2]
[312794043,1706239847174,-155.0,0.00031507,2]
[312794044,1706239847183,-176.58,0.00031548,2]
[312794045,1706239847193,-1270.7490175,0.00031582,14]
[312794046,1706239847202,-2000.0,0.00031582,4]
[312794047,1706239847212,-184.18,0.00031644,2]
[312794048,1706239847224,-180.0,0.00031644,2]
[312794049,1706239847233,-915.355,0.00031645,2]
[312794050,1706239847242,-19743.0,0.00031645,2]
[312794051,1706239847251,-2278.0,0.00031645,2]
[312794052,1706239847261,-215.0,0.00031645,2]
[312794053,1706239847270,-1233.0,0.00031645,2]
[312794054,1706239847279,-1252.0,0.00031645,2]
[312794055,1706239847290,-686.88,0.00031682,2]
[312794056,1706239847301,-158.33,0.00031723,2]
[312794057,1706239847310,-2294.8,0.00031723,2]
[312794058,1706239847319,-158.57,0.00031781,2]
[312794059,1706239847328,-150.0,0.00031876,2]
[312794060,1706239847338,-151.43359316,0.000319,2]
[312794061,1706239847347,-18251.08348332,0.00032,2]
[312794062,1706239847356,-155.14566326,0.00032,2]
[312794063,1706239847366,-158.33,0.00032011,2]
[312794064,1706239847375,-2294.8,0.00032011,2]
[312794065,1706239847385,-183.3406794,0.00032096,2]
[312794066,1706239847394,-158.57,0.00032146,2]
[312794067,1706239847404,-1000.0,0.0003223,2]
[312794068,1706239847413,-158.33,0.000323,2]
[312794069,1706239847423,-2294.8,0.000323,2]
[312794070,1706239847432,-2271.15811309,0.00032333,6]
[312794071,1706239847441,-1253.36734653,0.000324,2]
[312794072,1706239847451,-202.14005141,0.000325,2]
[312794073,1706239847460,-158.57,0.00032511,2]
[312794074,1706239847469,-158.33,0.00032588,2]
[312794075,1706239847478,-2294.8,0.00032588,2]
[312794076,1706239847487,-181.0,0.00032593,2]
[312794077,1706239847497,-408.61453981,0.000326,4]
[312794078,1706239847506,-184.03,0.0003279,2]
[312794079,1706239847516,-20430.72699054,0.000328,4]
[312794080,1706239847525,-3692.91483855,0.00032855,4]
[312794081,1706239847534,-150.0,0.00032876,2]
[312794082,1706239847544,-158.33,0.00032877,2]
[312794083,1706239847553,-2294.8,0.00032877,2]
[312794084,1706239847562,-158.57,0.00032877,2]
[312794085,1706239847571,-195.63,0.00032877,15]
[312794086,1706239847580,-19004.46,0.00032877,2]
[312794087,1706239847589,-155.0,0.00032877,2]
[312794088,1706239847599,-8683.14,0.0003288,2]
[312794089,1706239847608,-8683.14,0.0003288,2]
[312794090,1706239847617,-8683.14,0.0003288,2]
[312794091,1706239847626,-8683.14,0.0003288,2]
[312794092,1706239847636,-8683.14,0.0003288,2]
[312794093,1706239847645,-208.0,0.00032888,13]
[312794094,1706239847654,-151.43359316,0.0003298,2]
[312794095,1706239847663,-479.47719543,0.00032999,4]
[312794096,1706239847672,-23242.80268097,0.00032999,2]
[312794097,1706239847681,-1287.13912621,0.00033,4]
[312794098,1706239847691,-22337.65318005,0.00033,2]
[312794099,1706239847700,-848.36409267,0.00033,2]
[312794100,1706239847713,-279.1580792,0.00033,2]
[312794101,1706239847724,-21.37961678,0.00033,2]
[312794102,1706239847733,-458.62038338,0.00033,3]
[312794103,1706239848042,-427.0,0.00025645,2]
[312794104,1706239848052,-191.37961662,0.00033,3]
[312794105,1706239848063,-182.71,0.00033145,2]
[312794106,1706239848074,-393.27292484,0.000335,2]
[312794107,1706239848083,-155.12,0.0003379,2]
[312794108,1706239848092,-157.87783508,0.000338,4]
[312794109,1706239848102,-150.0,0.00033876,2]
[312794110,1706239848111,-1000.0,0.00034,4]
[312794111,1706239848120,-151.43359316,0.0003406,2]
[312794112,1706239848129,-155.0,0.00034247,2]
[312794113,1706239848139,-962.76,0.00034384,2]
[312794114,1706239848148,-942.96,0.00034384,2]
[312794115,1706239848157,-942.96,0.00034384,2]
[312794116,1706239848166,-942.96,0.00034384,2]
[312794117,1706239848175,-150.0,0.00034548,10]
[312794118,1706239848185,-2321.92,0.00034645,2]
[312794119,1706239848195,-2278.0,0.00034645,2]
[312794120,1706239848205,-5000.0,0.000348,3]
[312794121,1706239848215,-3692.91483855,0.00034845,7]
[312794122,1706239848254,-150.0,0.00034876,2]
[312794123,1706239848263,-567.6853391,0.000349,2]
[312794124,1706239848273,-567.68533909,0.000349,2]
[312794125,1706239848282,-567.68533909,0.000349,2]
[312794126,1706239848293,-537.061041,0.00035,11]
[312794127,1706239848302,-284.637566,0.00035,2]
[312794128,1706239848311,-1010.4021,0.00035,2]
[312794129,1706239848320,-700.0,0.00035,3]
[312794130,1706239848330,-151.43359316,0.0003514,2]
[312794131,1706239848339,-1000.0,0.0003516,2]
[312794132,1706239848348,-207.0,0.00035185,2]
[312794133,1706239848358,-177.95,0.00035215,120]
[312794134,1706239848368,-1000.0,0.00035347,7]
[312794135,1706239848377,-151.46565387,0.00035347,4]
[312794136,1706239848386,-1000.0,0.00035347,7]
[312794137,1706239848396,-182.71,0.00035409,2]
[312794138,1706239848405,-184.03,0.00035531,2]
[312794139,1706239848414,-50000.0,0.00035541,10]
[312794140,1706239848423,-155.0,0.00035617,2]
[312794141,1706239848432,-2271.15811309,0.0003584,7]
[312794142,1706239848441,-150.0,0.00035876,2]
[312794143,1706239848451,-1372.29539625,0.00035888,30]
[312794144,1706239848460,-150.62584722,0.0003591,5]
[312794145,1706239848469,-4590.47,0.000361,7]
[312794146,1706239848479,-5199.55169744,0.000361,7]
[312794147,1706239848521,-500.0,0.000361,7]
[312794159,1706240068242,219.08,0.00023282,10]
[312794160,1706240126349,2389.86,0.00021555,2]
[312794161,1706240228297,157.31,0.00020919,2]
[312794162,1706240279205,16.08480694,0.00022668,2]
[312794166,1706240688514,157.31,0.00019637,2]
[312794167,1706240876422,23468.87,0.00021555,2]
[312794168,1706240924332,750.0,0.00021555,2]
[312794169,1706240948021,250.0,0.00021555,2]
[312794178,1706241031751,-285.84840348,0.00021883,2]
[312794179,1706241031761,-12.84210273,0.00021884,2]
[312794180,1706241031806,-552.15789727,0.00021884,2]
[312794181,1706241031816,-1000.0,0.00021885,2]
[312794182,1706241031826,-288.44,0.0002189,2]
[312794183,1706241031835,-499.18,0.00021944,2]
[312794184,1706241031846,-250.0,0.00021955,2]
[312794185,1706241031855,-129.27002781,0.00021978,2]
[312794186,1706241031872,-158.27997219,0.00021978,2]
[312794187,1706241031881,-1074.49936877,0.00022067,2]
[312794188,1706241031893,-525.01690073,0.00022067,2]
[312794189,1706241031904,-562.43544538,0.00022067,2]
[312794190,1706241031917,-1101.33165979,0.00022067,2]
[312794191,1706241031932,-3937.39106229,0.00022067,2]
[312794192,1706241031952,-689.30241408,0.00022067,2]
[312794193,1706241031965,-1059.3612281,0.00022067,2]
[312794194,1706241031984,-10615.0526379,0.00022067,2]
[312794195,1706241032043,-367.45910793,0.00022067,2]
[312794196,1706241032055,-1992.94131316,0.00022067,2]
[312794197,1706241032066,-720.23153327,0.00022067,2]
[312794198,1706241032076,-24.41015285,0.00022068,2]
[312794218,1706241037818,-513.2072723,0.00022068,2]
[312794219,1706241037875,-2904.58117493,0.00022068,2]
[312794220,1706241037933,-382.17712541,0.00022068,2]
[312794221,1706241037946,-1725.061895,0.00022068,2]
[312794222,1706241037958,-530.81018988,0.00022068,2]
[312794223,1706241037970,-4459.38620389,0.00022068,2]
[312794224,1706241037990,-626.62065293,0.00022068,2]
[312794225,1706241038048,-2150.16565339,0.00022068,2]
[312794263,1706241040970,-5714.52084295,0.00022068,2]
[312794264,1706241040980,-300.0,0.00022071,2]
[312794265,1706241040989,-150.0,0.00022071,2]
[312794266,1706241040998,-2836.34,0.00022077,2]
[312794267,1706241041008,-155.58,0.00022168,2]
[312794268,1706241041018,-167.59822397,0.00022428,2]
[312794269,1706241041027,-155.58,0.00022457,2]
[312794270,1706241041036,-157.31,0.00022505,2]
[312794271,1706241041045,-155.58,0.00022746,2]
[312794272,1706241041054,-176.34,0.00022799,2]
[312794273,1706241041064,-1270.7098024,0.000229,3]
[312794274,1706241041074,-14996.5176,0.000229,2]
[312794275,1706241041083,-40807.3064,0.000229,2]
[312794276,1706241041092,-1000.0,0.00022906,2]
[312794277,1706241041102,-1159.44,0.0002291,2]
[312794278,1706241041111,-1000.0,0.00022995,2]
[312794279,1706241041120,-264.83027171,0.00022999,2]
[312794280,1706241041130,-1115.09095076,0.00022999,2]
[312794281,1706241041139,-158.56,0.00023,2]
[312794282,1706241041148,-155.58,0.00023034,2]
[312794283,1706241041158,-178.887189,0.00023162,2]
[312794284,1706241041167,-471.59477243,0.00023218,2]
[312794285,1706241041177,-404.2602,0.00023298,2]
[312794286,1706241041186,-1078.2979,0.00023298,2]
[312794287,1706241041195,-7648.7119,0.00023298,2]
[312794288,1706241041205,-155.58,0.00023323,2]
[312794289,1706241041214,-120714.9472567,0.00023397,2]
[312794290,1706241041224,-226.70008479,0.00023398,4]
[312794291,1706241041233,-156.04864027,0.00023444,2]
[312794292,1706241041242,-288.44,0.00023534,2]
[312794293,1706241041251,-1135.57905658,0.00024342,2]
[312794294,1706241041261,-800.0,0.00024411,2]
[312794295,1706241041270,-536.19952368,0.00024428,2]
[312794296,1706241041279,-234.10001686,0.00024439,2]
[312794297,1706241041289,-1166.92530093,0.0002444,2]
[312794298,1706241041298,-508.01973909,0.0002444,2]
[312794299,1706241041307,-198.830052,0.0002444,2]
[312794301,1706241041317,-1283.06696429,0.0002444,2]
[312794302,1706241041326,-156.34824989,0.0002444,2]
[312794303,1706241041335,-156.93961453,0.0002444,2]
[312794304,1706241041345,-156.93342135,0.0002444,2]
[312794305,1706241041354,-157.89834835,0.0002444,2]
[312794306,1706241041364,-194.07928715,0.0002444,2]
[312794307,1706241041373,-156.57474447,0.0002444,2]
[312794308,1706241041382,-33765.45615338,0.0002444,2]
[312794309,1706241041391,-494.19489458,0.0002444,2]
[312794310,1706241041400,-156.35376732,0.0002444,2]
[312794311,1706241041409,-421.87200528,0.0002444,2]
[312794312,1706241041419,-770.9854536,0.0002444,2]
[312794313,1706241041428,-705.97887165,0.0002444,2]
[312794314,1706241041438,-224.02118535,0.0002444,2]
[312794315,1706241041447,-156.2280149,0.0002444,2]
[312794316,1706241041457,-767.00185016,0.0002444,2]
[312794317,1706241041467,-1191.70945633,0.0002444,2]
[312794318,1706241041476,-527.94853131,0.0002444,2]
[312794319,1706241041485,-3763.98697093,0.0002444,2]
[312794320,1706241041494,-155.94660351,0.0002444,2]
[312794321,1706241041504,-2167.4169,0.0002444,2]
[312794322,1706241041514,-380.56341981,0.0002444,2]
[312794323,1706241041523,-267.36481734,0.0002444,2]
[312794324,1706241041533,-204.56258231,0.0002444,2]
[312794325,1706241041542,-163.67223724,0.0002444,2]
[312794326,1706241041552,-196.17482059,0.00024441,2]
[312794327,1706241041562,-160.31768113,0.00024441,2]
[312794328,1706241041571,-443.68927642,0.00024441,2]
[312794329,1706241041581,-327.25835994,0.00024441,2]
[312794330,1706241041590,-7264.16986553,0.00024441,2]
[312794331,1706241041600,-10566.79859535,0.00024442,2]
[312794332,1706241041609,-17614.48117179,0.00024442,2]
[312794333,1706241041622,-913.72473074,0.00024442,2]
[312794334,1706241041634,-372.03993255,0.00024442,2]
[312794335,1706241041645,-6809.0625918,0.00024442,2]
[312794336,1706241041657,-843.56738472,0.00024442,2]
[312794337,1706241041669,-6285.25396417,0.00024442,2]
[312794338,1706241041684,-5506.7444118,0.00024442,2]
[312794339,1706241041704,-546.46727808,0.00024442,2]
[312794340,1706241041718,-793.57873986,0.00024442,2]
[312794341,1706241041729,-538.19899558,0.00024442,2]
[312794342,1706241041745,-713.6500075,0.00024442,2]
[312794359,1706241042849,-291.23162982,0.00024442,2]
[312794360,1706241042861,-1010.20925933,0.00024442,2]
[312794361,1706241042874,-432.0,0.00024442,2]
[312794362,1706241042889,-391.89502056,0.00024442,2]
[312794363,1706241042899,-2594.05254131,0.00024442,2]
[312794364,1706241042908,-1820.80079211,0.00024443,2]
[312794365,1706241042917,-1423.94800983,0.00024443,2]
[312794366,1706241042927,-280.58606144,0.00024443,2]
[312794367,1706241042936,-4650.49664286,0.00024443,2]
[312794368,1706241042945,-27544.775928,0.00024444,2]
[312794369,1706241042955,-6092.0,0.000245,2]
[312794370,1706241042964,-250.0,0.00024658,2]
[312794371,1706241042974,-236.0,0.00024733,2]
[312794372,1706241043139,-1001.859,0.00024733,2]
[312794373,1706241043148,-427.0,0.00024733,2]
[312794374,1706241043158,-736.871,0.00024733,2]
[312794375,1706241043167,-288.44,0.00025178,2]
[312794376,1706241043177,-157.31,0.00025372,2]
[312794377,1706241043186,-1000.0,0.00025769,2]
[312794378,1706241043195,-500.0,0.00026,2]
[312794379,1706241043204,-882.77,0.00026575,2]
[312794380,1706241043213,-1000.0,0.00026575,2]
[312794381,1706241043223,-11802.5,0.00026575,2]
[312794382,1706241043232,-288.44,0.00026822,2]
[312794383,1706241043241,-155.0,0.00027397,2]
[312794384,1706241043250,-184.04,0.000274,2]
[312794385,1706241043259,-236.0,0.00027733,2]
[312794386,1706241043268,-999.0,0.00027733,2]
[312794387,1706241043278,-427.0,0.00027733,2]
[312794388,1706241043288,-1135.57905654,0.00027979,3]
[312794390,1706241043297,-693.37142157,0.00028,2]
[312794391,1706241043306,-200.0,0.00028,2]
[312794393,1706241043315,-157.31,0.0002824,2]
[312794394,1706241043324,-288.44,0.00028466,2]
[312794395,1706241043334,-1000.0,0.00028633,2]
[312794396,1706241043343,-160.24943765,0.00028767,2]
[312794397,1706241043352,-500.0,0.00029173,2]
[312794398,1706241043362,-500.0,0.00029173,2]
[312794399,1706241043372,-500.0,0.00029173,2]
[312794400,1706241043381,-500.0,0.00029173,2]
[312794401,1706241043390,-500.0,0.00029173,2]
[312794402,1706241043399,-500.0,0.00029173,2]
[312794403,1706241043408,-500.0,0.00029173,2]
[312794404,1706241043417,-500.0,0.00029173,2]
[312794405,1706241043427,-500.0,0.00029173,2]
[312794406,1706241043436,-500.0,0.00029173,2]
[312794407,1706241043445,-500.0,0.00029173,2]
[312794408,1706241043454,-500.0,0.00029173,2]
[312794409,1706241043463,-500.0,0.00029173,2]
[312794410,1706241043473,-500.0,0.00029173,2]
[312794411,1706241043482,-500.0,0.00029173,2]
[312794412,1706241043491,-500.0,0.00029173,2]
[312794413,1706241043501,-500.0,0.00029173,2]
[312794414,1706241043510,-500.0,0.00029173,2]
[312794415,1706241043519,-500.0,0.00029173,2]
[312794416,1706241043529,-500.0,0.00029173,2]
[312794417,1706241043538,-500.0,0.00029173,2]
[312794418,1706241043547,-500.0,0.00029173,2]
[312794419,1706241043556,-500.0,0.00029173,2]
[312794420,1706241043565,-500.0,0.00029173,2]
[312794421,1706241043574,-500.0,0.00029173,2]
[312794422,1706241043584,-500.0,0.00029173,2]
[312794423,1706241043593,-500.0,0.00029173,2]
[312794424,1706241043602,-500.0,0.00029173,2]
[312794425,1706241043611,-500.0,0.00029173,2]
[312794426,1706241043621,-500.0,0.00029173,2]
[312794427,1706241043630,-500.0,0.00029173,2]
[312794428,1706241043639,-556.0,0.000297,2]
[312794429,1706241043649,-1000.0,0.000297,2]
[312794430,1706241043658,-296.55648098,0.0003,4]
[312794431,1706241043667,-2264.30667236,0.0003,4]
[312794432,1706241043679,-155.0,0.0003,2]
[312794433,1706241043689,-458.56371485,0.0003,2]
[312794434,1706241043698,-288.44,0.00030109,2]
[312794435,1706241043708,-167.59822395,0.00030114,2]
[312794436,1706241043719,-236.0,0.00030733,2]
[312794437,1706241043728,-427.0,0.00030733,2]
[312794438,1706241043737,-157.31,0.00031108,2]
[312794439,1706241043746,-1000.0,0.00031496,2]
[312794440,1706241043755,-1135.57905654,0.00031616,5]
[312794441,1706241043764,-180.0,0.00031644,2]
[312794442,1706241043774,-2884.61564415,0.000318,3]
[312794443,1706241043783,-1190.69897927,0.000324,2]
[312794444,1706241043792,-1190.69897912,0.000324,2]
[312794445,1706241043802,-1190.69897912,0.000324,2]
[312794446,1706241043811,-1190.69897912,0.000324,2]
[312794447,1706241043821,-1190.69897912,0.000324,2]